bitfinex/quotes_ETHUSD_20240701
["timestamp","ask_amount","ask_price","bid_price","bid_amount"]
[1719850868069,2.464,3475.7,3475.0,2.87766]
[1719850868311,0.02640986,3475.6,3475.0,2.87766]
[1719850868707,0.06889652,3475.5,3475.0,2.87766]
[1719850868911,0.06889652,3475.5,3475.1,2.87756]
[1719850869810,0.06889652,3475.5,3474.9,2.87774]
[1719850870007,0.02640986,3475.4,3474.7,2.87793]
[1719850870374,2.453,3475.3,3474.7,2.87793]
[1719850871008,2.453,3475.3,3474.8,2.87785]
[1719850871185,0.06882165,3475.2,3474.8,2.87785]
[1719850871386,2.453,3475.3,3474.9,2.87777]
[1719850871651,0.06882165,3475.2,3474.9,2.87777]
[1719850871925,2.453,3475.3,3474.9,2.87777]
[1719850872222,0.06880671,3475.1,3474.9,2.87777]
[1719850872518,0.068778,3475.0,3474.9,2.87777]
[1719850872722,2.453,3475.3,3474.7,2.87793]
[1719850873291,2.453,3475.3,3474.8,2.87786]
[1719850873489,0.06880414,3475.2,3474.8,2.87786]
[1719850873686,2.453,3475.3,3474.8,2.87786]
[1719850874005,0.06880414,3475.2,3474.8,2.87786]
[1719850874184,2.453,3475.3,3474.8,2.87786]
[1719850874504,0.06880414,3475.2,3474.8,2.87786]
[1719850874836,2.453,3475.3,3474.8,2.87786]
[1719850875339,2.453,3475.3,3474.9,2.87777]
[1719850875828,0.06880414,3475.2,3474.9,2.87777]
[1719850876220,2.453,3475.3,3474.9,2.87777]
[1719850876395,0.06878919,3475.1,3474.9,2.87777]
[1719850876600,2.453,3475.3,3474.9,2.87777]
[1719850876801,0.06877424,3475.0,3474.9,2.87777]
[1719850877338,2.453,3475.3,3474.9,2.87777]
[1719850877548,0.06877274,3475.0,3474.9,2.87777]
[1719850877695,2.453,3475.3,3474.9,2.87777]
[1719850878034,0.06880264,3475.2,3474.9,2.87777]
[1719850878551,0.06878769,3475.1,3474.7,2.87793]
[1719850878688,0.06878769,3475.1,3474.5,2.87806]
[1719850878890,2.453,3475.3,3474.5,2.87806]
[1719850878891,2.453,3475.3,3474.5,5.75609]
[1719850879322,0.06874403,3475.2,3474.6,2.87802]
[1719850879738,2.453,3475.3,3474.4,2.87818]
[1719850880038,1.95,3475.7,3473.9,2.87858]
[1719850880039,0.06860462,3475.1,3473.9,2.87858]
[1719850880240,1.95,3475.7,3473.9,2.87858]
[1719850880241,2.3839,3475.0,3473.9,2.87858]
[1719850880533,2.3839,3475.0,3473.8,2.2671]
[1719850880534,2.3839,3475.0,3474.2,2.87836]
[1719850880945,0.02640986,3474.9,3474.2,2.87836]
[1719850882511,0.06866978,3474.8,3474.2,2.87836]
[1719850883053,0.06866978,3474.8,3474.4,2.87818]
[1719850883264,0.06866978,3474.8,3474.7,2.87794]
[1719850883440,2.4084,3475.3,3474.7,2.87794]
[1719850883441,0.02640986,3475.2,3474.7,2.87794]
[1719850883761,2.4084,3475.3,3474.8,2.87779]
[1719850884052,0.06841154,3475.1,3474.8,2.87779]
[1719850884253,0.09483634,3475.2,3474.6,2.87796]
[1719850884566,0.02640986,3475.2,3474.6,2.87796]
[1719850884909,0.02640986,3475.2,3474.5,2.87808]
[1719850885932,2.3604,3475.1,3474.4,2.87819]
[1719850886171,0.09480645,3475.0,3474.4,2.87819]
[1719850886380,0.09480645,3475.0,3474.2,2.87828]
[1719850886979,2.3678,3474.9,3474.2,2.87828]
[1719850887277,0.02640986,3474.8,3474.2,2.87828]
[1719850888028,0.02640986,3474.8,3474.1,2.87844]
[1719850888281,0.0683444,3474.7,3474.2,2.87835]
[1719850888783,0.02640986,3474.8,3474.3,2.87827]
[1719850888939,2.3678,3474.9,3474.4,2.87817]
[1719850889134,0.06835185,3474.8,3474.2,2.87829]
[1719850889475,0.06835185,3474.8,3474.3,2.87827]
[1719850889476,0.09476171,3474.8,3474.3,2.87827]
[1719850890948,0.06835185,3474.8,3474.3,2.87827]
[1719850892674,0.09476171,3474.8,3474.3,2.87827]
[1719850892880,0.06835185,3474.8,3474.3,2.87823]
[1719850894500,0.09476171,3474.8,3474.3,2.87823]
[1719850896718,0.09476171,3474.8,3473.9,2.87854]
[1719850896887,2.3085,3474.7,3474.0,2.87847]
[1719850897117,0.02640986,3474.6,3474.0,2.87847]
[1719850897289,0.02640986,3474.6,3474.0,2.87845]
[1719850898005,0.02640986,3474.6,3473.9,2.87859]
[1719850898331,2.2574,3474.5,3473.9,2.87859]
[1719850898475,0.02640986,3474.4,3473.9,2.87859]
[1719850898679,0.09461549,3474.4,3473.9,2.87859]
[1719850901189,0.09461549,3474.4,3473.9,2.87853]
[1719850901392,0.02640986,3474.4,3473.9,2.87853]
[1719850903702,0.02640986,3474.4,3473.7,2.87872]
[1719850903904,0.02640986,3474.4,3473.8,2.87869]
[1719850904909,0.02640986,3474.4,3473.7,2.87872]
[1719850905323,0.02640986,3474.4,3473.7,2.8787]
[1719850905627,0.02640986,3474.4,3473.7,5.7574]
[1719850906226,0.02640986,3474.4,3473.7,2.8787]
[1719850906434,0.02640986,3474.4,3473.2,8.11026071]
[1719850906435,2.4143,3474.3,3473.6,2.87882]
[1719850906749,0.02640986,3474.2,3473.6,2.87882]
[1719850909847,0.02640986,3474.2,3473.6,5.75762]
[1719850910197,0.02640986,3474.2,3473.6,2.8788]
[1719850912707,0.02640986,3474.2,3473.4,2.87894]
[1719850912914,2.3596,3474.2,3473.5,0.813]
[1719850913222,0.09444166,3474.1,3473.4,2.87894]
[1719850913433,0.09444166,3474.1,3473.5,2.87893]
[1719850913723,0.09444166,3474.1,3473.5,3.69193]
[1719850915407,0.09444166,3474.1,3473.6,2.87885]
[1719850915631,0.02640986,3474.1,3473.6,2.87885]
[1719850915810,0.06800182,3474.0,3473.6,2.87879]
[1719850916021,0.29951984,3474.9,3473.6,2.87879]
[1719850916022,2.3867,3474.4,3473.9,0.813]
[1719850916307,0.06802666,3474.3,3473.9,3.6916]
[1719850917440,0.09443652,3474.3,3473.9,0.813]
[1719850917655,0.09443652,3474.3,3473.8,2.87869]
[1719850917855,0.02640986,3474.3,3473.8,2.87869]
[1719850918055,0.02640986,3474.3,3473.9,2.87859]
[1719850918211,0.0680117,3474.2,3473.9,2.87859]
[1719850918413,0.02640986,3474.3,3473.9,2.87859]
[1719850918642,0.0680117,3474.2,3473.9,2.87859]
[1719850918822,0.02640986,3474.3,3473.9,2.87859]
[1719850919022,0.0680117,3474.2,3473.7,6.57045]
[1719850919348,0.02640986,3474.3,3473.7,3.69169]
[1719850919714,0.0680117,3474.2,3473.7,3.69169]
[1719850919914,0.0680117,3474.2,3473.7,6.57039]
[1719850920153,0.02640986,3474.3,3473.7,3.69169]
[1719850920654,0.0680117,3474.2,3473.8,2.87868]
[1719850920813,0.02640986,3474.3,3473.8,2.87868]
[1719850921168,0.0680117,3474.2,3473.7,0.813]
[1719850921350,0.0680117,3474.2,3473.7,3.6917]
[1719850921515,2.3867,3474.4,3473.8,2.87867]
[1719850921714,2.3867,3474.4,3473.9,2.87853]
[1719850921939,0.06802666,3474.3,3473.9,2.87853]
[1719850922196,0.06802666,3474.3,3473.9,3.69153]
[1719850922450,0.06802666,3474.3,3473.9,6.57006]
[1719850922658,2.3867,3474.4,3474.0,2.87851]
[1719850922857,0.06805546,3474.3,3474.0,2.87851]
[1719850923160,2.3867,3474.4,3474.0,2.87851]
[1719850923577,0.06762213,3474.3,3474.1,2.87842]
[1719850923726,0.06762213,3474.3,3474.2,2.87836]
[1719850923932,2.29,3474.7,3474.5,2.8781]
[1719850924273,0.813,3475.3,3475.0,2.87763]
[1719850924274,2.29,3475.3,3475.0,2.87763]
[1719850925122,2.3489,3475.6,3475.1,0.813]
[1719850925326,2.3489,3475.6,3475.3,0.813]
[1719850926326,2.3489,3475.6,3475.2,2.87752]
[1719850926668,2.34748718,3475.6,3475.3,2.87743]
[1719850927956,2.34748718,3475.6,3475.1,2.8776]
[1719850928741,2.34748718,3475.6,3474.9,2.87775]
[1719850928944,2.34748718,3475.6,3475.0,2.87765]
[1719850929944,2.34748718,3475.6,3475.1,2.8776]
[1719850930438,0.06806345,3475.5,3475.1,2.8776]
[1719850932078,2.34748718,3475.6,3475.1,2.8776]
[1719850932448,0.06805721,3475.5,3475.3,2.87744]
[1719850932662,0.06805721,3475.5,3475.1,2.8776]
[1719850932864,2.34748718,3475.6,3475.2,2.87752]
[1719850933068,0.06805721,3475.5,3475.2,2.93503702]
[1719850933275,2.4688,3475.9,3475.6,2.87715]
[1719850933452,0.06810204,3475.8,3475.6,2.87715]
[1719850933653,0.06810204,3475.8,3475.7,2.87711]
[1719850933883,0.02640986,3476.2,3475.8,2.87697]
[1719850934739,0.02640986,3476.2,3475.6,2.87715]
[1719850935241,0.02640986,3476.2,3475.4,2.87729]
[1719850935877,0.02640986,3476.2,3475.5,2.87728]
[1719850936657,0.02640986,3476.2,3475.3,2.87742]
[1719850936983,2.4467,3476.1,3475.3,2.87742]
[1719850937221,0.02640986,3476.0,3475.1,2.87755]
[1719850938182,0.02640986,3476.0,3474.9,2.87774]
[1719850938183,2.2579,3475.9,3474.9,2.87774]
[1719850938340,0.02640986,3475.8,3474.9,2.87774]
[1719850938558,2.2579,3475.7,3474.9,2.87774]
[1719850938799,0.02640986,3475.6,3474.9,2.87774]
[1719850939360,0.02640986,3475.6,3475.0,2.87769]
[1719850940514,0.02640986,3475.6,3474.8,2.8778]
[1719850940661,0.02640986,3475.6,3474.9,2.87777]
[1719850941985,0.02640986,3475.6,3474.7,5.75577]
[1719850942387,2.3629,3475.5,3474.7,5.75577]
[1719850942555,0.02640986,3475.4,3474.8,2.87784]
[1719850942756,0.02640986,3475.4,3474.7,2.87787]
[1719850943001,0.02640986,3475.4,3474.8,2.87784]
[1719850943766,2.3629,3475.5,3474.9,2.87776]
[1719850944102,0.06805977,3475.4,3474.9,2.87776]
[1719850945772,0.06805977,3475.4,3474.7,2.87787]
[1719850945773,0.06805977,3475.4,3474.7,5.75575]
[1719850945995,0.06805977,3475.4,3474.7,5.75576]
[1719850946200,0.02640986,3475.4,3474.7,5.75576]
[1719850946801,0.02640986,3475.4,3474.8,2.87785]
[1719850948591,2.3629,3475.5,3474.9,2.87777]
[1719850948916,0.09461861,3475.4,3474.7,2.87788]
[1719850949215,0.09461861,3475.4,3474.6,2.87799]
[1719850949414,0.02640986,3475.4,3474.6,2.87799]
[1719850949611,0.02640986,3475.4,3474.8,2.87781]
[1719850950127,0.02640986,3475.4,3474.9,0.813]
[1719850953193,2.3629,3475.5,3474.9,0.813]
[1719850953604,0.06820498,3475.4,3474.9,0.813]
[1719850953936,2.3629,3475.5,3474.9,0.813]
[1719850954240,0.09461484,3475.4,3474.9,0.813]
[1719850954532,0.02640986,3475.4,3474.9,0.813]
[1719850956634,2.3629,3475.5,3474.9,0.813]
[1719850956814,0.06820498,3475.4,3474.9,0.813]
[1719850957195,2.3629,3475.5,3474.9,0.813]
[1719850957505,0.06820623,3475.4,3474.9,0.813]
[1719850957920,2.3629,3475.5,3474.9,3.69077]
[1719850958421,0.06820623,3475.4,3474.9,3.69077]
[1719850958629,2.3629,3475.5,3474.9,3.69077]
[1719850958997,0.06820623,3475.4,3475.1,0.813]
[1719850959193,2.3629,3475.5,3475.1,0.813]
[1719850959728,0.06820623,3475.4,3475.1,0.813]
[1719850960227,2.3629,3475.5,3475.1,0.813]
[1719850960428,2.3479,3475.8,3475.4,0.813]
[1719850960594,2.3479,3475.8,3475.6,0.813]
[1719850960791,2.3479,3475.8,3475.4,0.813]
[1719850961533,2.3479,3475.8,3475.1,2.87754]
[1719850961734,2.3479,3475.8,3475.2,0.813]
[1719850963536,2.3479,3475.8,3475.4,2.87736]
[1719850963843,2.3479,3475.8,3475.4,3.69036]
[1719850964137,0.02640986,3476.1,3475.4,3.69036]
[1719850964138,2.35700986,3476.1,3475.4,3.69036]
[1719850964642,0.02640986,3476.0,3475.4,3.69036]
[1719850965317,0.02640986,3476.0,3475.1,2.87757]
[1719850965318,0.02640986,3476.0,3475.2,2.87747]
[1719850965517,0.02640986,3476.0,3475.4,0.813]
[1719850965826,2.35700986,3476.1,3475.5,2.87722]
[1719850966139,2.35700986,3476.1,3475.6,0.813]
[1719850966905,2.3306,3476.1,3475.6,0.813]
[1719850967521,0.02640986,3476.0,3475.5,2.87722]
[1719850967827,2.3306,3476.1,3475.6,2.87718]
[1719850968031,2.3306,3476.1,3475.6,3.69018]
[1719850968813,2.3924,3476.1,3475.7,2.87711]
[1719850969536,2.3924,3476.1,3475.7,2.87707]
[1719850969742,2.3924,3476.1,3475.8,2.87702]
[1719850970600,0.02640986,3476.0,3475.4,2.87735]
[1719850970806,0.83940986,3476.0,3475.4,2.87735]
[1719850971417,0.02640986,3476.0,3475.4,2.87735]
[1719850971838,0.02640986,3476.0,3475.1,0.813]
[1719850971839,0.02640986,3476.0,3475.5,2.87722]
[1719850975342,0.06716494,3475.9,3475.5,2.87722]
[1719850976455,0.06716494,3475.9,3475.8,0.813]
[1719850976665,2.48280986,3476.4,3475.8,3.69003]
[1719850976861,0.06721912,3476.3,3475.8,3.69003]
[1719850977234,0.06721912,3476.3,3476.0,3.68981]
[1719850977445,11.7787,3476.6,3476.2,0.813]
[1719850977635,19.75,3478.1,3476.4,0.813]
[1719850977636,0.06725341,3476.5,3476.4,0.813]
[1719850977955,2.4387,3477.3,3476.4,3.68953]
[1719850978266,0.0915067,3477.2,3476.5,2.87644]
[1719850978968,3.0915067,3477.2,3476.4,0.813]
[1719850979470,3.9045067,3477.2,3476.4,0.813]
[1719850980538,3.0915067,3477.2,3476.4,0.813]
[1719850980734,3.9045067,3477.2,3476.4,0.813]
[1719850982297,3.9045067,3477.2,3476.3,0.05752729]
[1719850982298,0.813,3477.0,3476.3,2.87661]
[1719850982478,0.09144417,3476.9,3476.3,3.68961]
[1719850982788,0.06503431,3476.9,3476.3,0.813]
[1719850982943,2.2908,3476.8,3476.1,3.68972]
[1719850983355,0.06502219,3476.7,3476.1,3.68972]
[1719850983949,0.06502219,3476.7,3476.2,2.87669]
[1719850987184,0.06502219,3476.7,3476.0,0.813]
[1719850987185,0.09143205,3476.7,3476.0,0.813]
[1719850987545,0.09143205,3476.7,3476.0,3.68986]
[1719850990148,0.09143205,3476.7,3476.0,0.813]
[1719850990862,0.09143205,3476.7,3476.0,3.68986]
[1719850994091,0.09143205,3476.7,3476.0,0.813]
[1719850994900,2.4705,3476.6,3475.9,2.87693]
[1719850995091,0.09060225,3476.5,3475.9,2.87693]
[1719850995468,0.09060225,3476.5,3475.7,2.87706]
[1719850995793,0.02640986,3476.5,3475.9,2.87693]
[1719850995953,0.02640986,3476.5,3476.0,0.813]
[1719850996154,0.06416977,3476.4,3476.0,0.813]
[1719850996555,0.02640986,3476.5,3476.0,0.813]
[1719850996778,0.02640986,3476.5,3475.8,0.813]
[1719850996991,0.06415862,3476.4,3475.8,0.813]
[1719850997358,0.02640986,3476.5,3475.8,0.813]
[1719850997693,0.06424626,3476.4,3475.8,0.813]
[1719850997991,0.02640986,3476.5,3475.8,0.813]
[1719850998498,0.02640986,3476.5,3475.7,3.69005]
[1719850998499,2.4172,3476.3,3475.7,3.69005]
[1719850998709,0.09052807,3476.2,3475.4,2.87734]
[1719850998865,0.02640986,3476.2,3475.5,0.813]
[1719851000488,0.02640986,3476.2,3475.4,2.87734]
[1719851001266,2.3925,3476.1,3475.4,2.87734]
[1719851001591,0.02640986,3476.0,3475.4,2.87734]
[1719851001918,0.02640986,3476.0,3475.3,0.813]
[1719851002065,0.02640986,3476.0,3475.2,2.87746]
[1719851002272,0.02640986,3476.0,3475.2,3.69046]
[1719851002582,0.06405585,3475.9,3475.2,3.69046]
[1719851003605,0.06405585,3475.9,3475.2,0.813]
[1719851003906,0.06405585,3475.9,3475.2,2.87751]
[1719851003907,2.3925,3475.8,3475.2,2.87751]
[1719851004112,0.06397547,3475.7,3475.2,2.87751]
[1719851004461,0.06397547,3475.7,3475.3,0.813]
[1719851004665,2.3925,3475.8,3475.3,0.813]
[1719851005807,0.02640986,3475.7,3475.3,0.813]
[1719851006537,0.02640986,3475.7,3475.1,0.813]
[1719851006693,0.02640986,3475.7,3474.8,8.04164]
[1719851007034,2.3925,3475.6,3474.6,2.87795]
[1719851007192,0.02640986,3475.5,3474.7,3.69092]
[1719851007397,0.09038031,3475.5,3474.7,3.69092]
[1719851007616,0.02640986,3475.5,3474.7,3.69092]
[1719851009241,2.3925,3475.4,3474.7,0.813]
[1719851009532,0.02640986,3475.3,3474.7,0.813]
[1719851009703,0.06382476,3475.2,3474.7,0.813]
[1719851012310,0.06382476,3475.2,3474.3,2.286]
[1719851012527,2.3698,3475.1,3474.2,2.87829]
[1719851012742,0.02640986,3475.0,3474.2,2.87829]
[1719851012919,0.02640986,3475.0,3474.3,3.69125]
[1719851013924,0.02640986,3475.0,3474.4,2.87818]
[1719851015000,0.02640986,3475.0,3474.3,3.69125]
[1719851016031,0.02640986,3475.0,3474.4,0.813]
[1719851019221,0.02640986,3475.0,3474.3,2.87825]
[1719851019720,2.416,3474.8,3473.9,2.87854]
[1719851020036,0.06244585,3474.9,3473.9,2.87854]
[1719851020037,2.416,3474.6,3473.9,3.69154]
[1719851020239,2.406,3474.6,3473.9,3.69154]
[1719851020445,0.06235848,3474.5,3474.0,2.87852]
[1719851021024,0.06235848,3474.5,3474.1,0.813]
[1719851021428,0.06235848,3474.5,3474.1,3.69142]
[1719851024517,2.406,3474.6,3474.1,3.69142]
[1719851029423,2.406,3474.6,3474.1,2.87842]
[1719851029626,2.406,3474.6,3474.0,0.813]
[1719851029816,2.406,3474.6,3474.0,3.69151]
[1719851030359,0.02640986,3474.5,3473.9,0.813]
[1719851034834,2.4154,3474.4,3473.9,0.813]
[1719851035040,2.4154,3474.4,3473.6,2.87878]
[1719851035366,2.4154,3474.4,3473.7,0.813]
[1719851035527,0.02640986,3474.3,3473.6,2.87878]
[1719851035880,0.02640986,3474.3,3473.4,2.87894]
[1719851036160,2.2854,3474.2,3473.5,0.813]
[1719851036375,0.02640986,3474.1,3473.5,0.813]
[1719851036529,0.0886525,3474.1,3473.5,0.813]
[1719851037231,0.06224264,3474.1,3473.5,0.813]
[1719851037646,0.0886525,3474.1,3473.1,2.87922]
[1719851037852,0.0886525,3474.1,3473.3,0.813]
[1719851038055,0.02640986,3474.1,3473.3,3.69209]
[1719851038447,0.02640986,3474.1,3473.3,0.813]
[1719851038655,2.2854,3474.0,3473.3,0.813]
[1719851038853,0.02640986,3473.9,3473.3,3.6921]
[1719851039167,0.08855425,3473.9,3473.3,3.6921]
[1719851041353,0.02640986,3473.9,3473.3,3.6921]
[1719851041847,0.06209398,3473.8,3473.3,3.6921]
[1719851042655,0.06209398,3473.8,3473.2,2.87911]
[1719851042871,0.06209398,3473.8,3473.3,0.813]
[1719851043077,2.2854,3474.0,3473.5,0.813]
[1719851043379,2.3414,3474.5,3473.7,0.813]
[1719851043568,0.06210548,3473.9,3473.8,0.05756915]
[1719851043787,2.3414,3474.5,3473.9,2.87858]
[1719851044188,7.48,3474.7,3474.2,0.813]
[1719851044389,2.3751,3474.8,3474.2,0.813]
[1719851044580,0.02640986,3474.7,3474.2,0.813]
[1719851044917,0.02640986,3474.7,3474.1,2.87839]
[1719851045264,0.02640986,3474.7,3474.2,2.87833]
[1719851045470,2.3751,3474.8,3474.3,0.0575623]
[1719851045666,2.3751,3475.3,3474.7,0.813]
[1719851045871,0.02640986,3475.2,3474.5,0.813]
[1719851047513,0.02640986,3475.2,3474.6,2.87802]
[1719851048075,0.02640986,3475.2,3474.5,0.813]
[1719851048076,2.3751,3475.3,3474.9,0.813]
[1719851048307,3.1881,3476.0,3475.1,3.69061]
[1719851048513,3.1881,3476.0,3475.1,0.813]
[1719851048514,0.02640986,3475.9,3475.1,0.813]
[1719851049018,0.02640986,3475.9,3475.0,2.87769]
[1719851049314,0.02640986,3475.9,3475.1,0.813]
[1719851049510,0.813,3475.8,3475.0,2.87764]
[1719851049816,0.02640986,3475.7,3475.0,2.87764]
[1719851050038,0.02640986,3475.7,3475.1,2.87761]
[1719851053908,0.02640986,3475.9,3475.1,3.69061]
[1719851054111,0.02640986,3475.9,3475.3,3.69039]
[1719851054317,0.05838699,3475.8,3475.4,2.87731]
[1719851054503,0.05838699,3475.8,3475.7,0.813]
[1719851054823,2.3751,3476.0,3475.5,3.69023]
[1719851054991,0.05859092,3475.8,3475.5,3.69023]
[1719851055202,0.05859766,3475.9,3475.5,3.69023]
[1719851055375,0.058576,3475.7,3475.5,3.69023]
[1719851055581,2.3751,3476.0,3475.5,3.69023]
[1719851055910,2.3751,3476.0,3475.5,2.87723]
[1719851056102,0.08505909,3475.9,3475.3,2.87742]
[1719851057412,0.08505909,3475.9,3475.5,2.87728]
[1719851057589,0.05864923,3475.9,3475.5,2.87728]
[1719851058598,0.05864923,3475.9,3475.4,0.813]
[1719851058799,0.05864923,3475.9,3475.4,3.69035]
[1719851059225,0.05864923,3475.9,3475.5,2.87721]
[1719851059909,0.02640986,3476.2,3475.5,2.87721]
[1719851060328,0.0586835,3476.1,3475.5,2.87721]
[1719851061488,0.0586835,3476.1,3475.6,2.87718]
[1719851061693,0.0586835,3476.1,3475.6,0.813]
[1719851061928,0.0586835,3476.1,3475.9,2.87689]
[1719851062223,2.39,3476.3,3475.9,2.87689]
[1719851062420,0.05868545,3476.0,3475.9,2.87689]
[1719851062649,2.39,3476.3,3475.9,2.87689]
[1719851062855,0.05868545,3476.0,3475.8,2.87703]
[1719851063026,2.39,3476.3,3475.8,2.87703]
[1719851063231,0.05867051,3475.9,3475.6,3.69013]
[1719851063548,0.02640986,3476.2,3475.5,2.87724]
[1719851063949,0.02640986,3476.2,3475.4,0.813]
[1719851063950,0.05870039,3476.1,3475.4,0.813]
[1719851064148,0.05870039,3476.1,3475.4,3.69036]
[1719851067150,0.05870039,3476.1,3475.4,0.813]
[1719851067354,0.87170039,3476.1,3475.3,3.69044]
[1719851067559,0.02640986,3476.0,3475.3,3.69044]
[1719851067722,0.05788194,3475.9,3475.3,2.87744]
[1719851067922,2.4109,3475.8,3475.3,3.69044]
[1719851068222,0.05785485,3475.7,3475.3,3.69044]
[1719851068648,2.4109,3475.8,3475.3,3.69044]
[1719851068839,0.05783991,3475.6,3475.3,3.69037]
[1719851069034,2.4109,3475.8,3475.3,3.69037]
[1719851069443,0.05785485,3475.7,3475.3,3.69037]
[1719851069635,2.4109,3475.8,3475.3,3.69037]
[1719851069958,0.02640986,3475.7,3475.3,0.813]
[1719851070264,0.02640986,3475.7,3475.0,0.813]
[1719851070861,0.813,3475.6,3474.7,2.8779]
[1719851071167,0.02640986,3475.5,3474.9,0.813]
[1719851071373,0.05780126,3475.4,3474.9,0.813]
[1719851071525,0.05780126,3475.4,3474.9,3.69072]
[1719851073569,0.05780126,3475.4,3474.9,0.813]
[1719851073908,0.02640986,3475.5,3474.9,3.69077]
[1719851074264,0.02640986,3475.5,3474.9,0.813]
[1719851074885,0.02640986,3475.5,3474.9,3.69077]
[1719851078481,2.2573,3475.6,3475.1,0.813]
[1719851080705,2.41460986,3475.9,3475.2,2.87751]
[1719851080911,2.3882,3475.9,3475.3,2.87738]
[1719851081115,0.05693463,3475.8,3475.3,2.87738]
[1719851081439,0.05693463,3475.8,3475.3,3.69038]
[1719851082420,0.05693463,3475.8,3475.1,2.87754]
[1719851082580,0.05693463,3475.8,3475.1,3.69054]
[1719851083608,0.08334449,3475.8,3475.1,3.69054]
[1719851084185,0.08334449,3475.8,3475.2,2.87753]
[1719851085122,0.08334449,3475.8,3475.0,2.87763]
[1719851085305,0.08334449,3475.8,3475.1,0.813]
[1719851085501,0.08334449,3475.8,3475.1,3.6906]
[1719851086616,0.08334449,3475.8,3475.1,0.813]
[1719851087310,0.08334449,3475.8,3475.0,2.87769]
[1719851087311,0.08334449,3475.8,3474.9,2.87773]
[1719851087504,2.3724,3475.7,3475.0,0.813]
[1719851087710,0.02640986,3475.6,3475.0,0.813]
[1719851087916,0.0833135,3475.6,3475.0,0.813]
[1719851091730,0.05690364,3475.6,3475.0,0.813]
[1719851097632,0.0833135,3475.6,3475.0,0.813]
[1719851098001,0.02640986,3475.6,3475.0,0.813]
[1719851100640,0.05596064,3475.5,3475.0,0.813]
[1719851101239,0.05596064,3475.5,3474.4,2.87818]
[1719851101405,2.48150986,3475.4,3474.4,3.69118]
[1719851101607,0.02640986,3475.3,3474.8,0.813]
[1719851101837,0.05592326,3475.3,3474.8,0.813]
[1719851103903,0.08233312,3475.3,3474.8,0.813]
[1719851104102,0.08233312,3475.3,3474.6,0.813]
[1719851107207,0.02640986,3475.3,3474.6,0.813]
[1719851107645,2.48150986,3475.4,3474.6,0.813]
[1719851108119,0.05575804,3475.3,3474.6,0.813]
[1719851109253,2.4063,3475.1,3474.3,0.813]
[1719851109608,0.05578707,3475.0,3474.3,0.813]
[1719851111143,0.08219693,3475.0,3474.3,0.813]
[1719851111352,0.08219693,3475.0,3474.1,2.87837]
[1719851111554,0.08219693,3475.0,3474.4,0.813]
[1719851111718,0.02640986,3475.0,3474.4,0.813]
[1719851112121,2.4063,3475.1,3474.6,0.813]
[1719851112315,2.4063,3475.1,3474.6,0.87055865]
[1719851112628,2.4063,3475.1,3474.8,0.813]
[1719851112841,2.4191,3475.5,3474.8,0.813]
[1719851113235,0.05577319,3475.4,3474.8,0.813]
[1719851114056,0.08218305,3475.4,3474.8,0.813]
[1719851114362,0.08218305,3475.4,3474.8,3.69086]
[1719851114845,0.08218305,3475.4,3474.8,0.813]
[1719851115743,0.08218305,3475.4,3474.6,3.74851139]
[1719851116261,0.02640986,3475.4,3474.6,3.74851139]
[1719851117351,0.02640986,3475.4,3474.9,0.813]
[1719851117752,0.05575824,3475.3,3474.9,3.69071]
[1719851118283,2.4191,3475.5,3474.9,3.69071]
[1719851118490,2.4191,3475.5,3475.1,3.6906]
[1719851118650,0.05580572,3475.4,3474.9,2.87771]
[1719851119010,0.05580572,3475.4,3474.9,3.69071]
[1719851120349,0.05580572,3475.4,3474.7,2.8779]
[1719851120588,0.05580572,3475.4,3474.8,3.69082]
[1719851120748,2.4755,3475.3,3474.5,2.87807]
[1719851120958,2.4755,3475.3,3474.7,0.813]
[1719851121370,0.05580713,3475.2,3474.7,0.813]
[1719851121942,0.08221699,3475.2,3474.7,0.813]
[1719851123109,0.05580713,3475.2,3474.7,0.813]
[1719851123289,0.08221699,3475.2,3474.7,0.813]
[1719851123982,0.02640986,3475.2,3474.7,0.813]
[1719851124414,0.02640986,3475.2,3474.6,2.87801]
[1719851125818,0.02640986,3475.2,3474.7,2.87794]
[1719851126000,2.4755,3475.3,3474.7,3.69094]
[1719851128015,2.4755,3475.3,3474.7,0.813]
[1719851128704,2.4755,3475.3,3474.6,2.87801]
[1719851128876,2.4755,3475.3,3474.6,3.69101]
[1719851129613,0.02640986,3475.2,3474.5,0.813]
[1719851129816,2.4047,3475.1,3474.5,0.813]
[1719851130106,0.02640986,3475.0,3474.3,2.87826]
[1719851130336,2.4047,3475.1,3474.4,0.87055736]
[1719851130494,2.4047,3475.1,3474.4,0.813]
[1719851131017,2.4047,3475.1,3474.4,3.74874736]
[1719851134549,2.4047,3475.1,3474.3,2.87826]
[1719851134699,2.4047,3475.1,3474.4,0.813]
[1719851137007,2.4406,3474.9,3474.1,3.69138]
[1719851137214,0.05479616,3474.8,3474.1,3.69138]
[1719851137529,0.05479616,3474.8,3474.3,2.87827]
[1719851138726,0.05479616,3474.8,3474.3,3.69127]
[1719851140437,0.05479616,3474.8,3474.4,2.87818]
[1719851141135,0.05479616,3474.8,3474.5,3.69111]
[1719851141519,2.4406,3474.9,3474.5,0.813]
[1719851141927,2.4406,3474.9,3474.5,3.69111]
[1719851141928,0.05478115,3474.8,3474.5,3.69111]
[1719851142124,0.05478115,3474.8,3474.7,3.69094]
[1719851142309,2.4131,3475.3,3474.7,3.69094]
[1719851142505,0.05478115,3474.8,3474.7,3.69094]
[1719851142709,2.4131,3475.3,3474.7,3.69094]
[1719851142931,0.05478866,3474.8,3474.7,3.69094]
[1719851143437,2.4131,3475.3,3474.7,3.69094]
[1719851143637,0.05484846,3475.2,3474.7,3.69094]
[1719851144645,0.05484846,3475.2,3474.8,2.87785]